Cogmind - Beta 14 @@@ ROGUE MODE // 2025.02.24 @ 04:30:11 Player: Zeta Lockhart Result: Destroyed by as-77759 with Assembled Blade Performance ------------- Evolutions (0) 0 Regions Visited (2) 400 Robots Destroyed (15) 75 Value Destroyed (180) 180 Prototype IDs (0) 0 Alien Tech Used (0) 0 Bonus (0) 0 TOTAL SCORE: 655 Bonus ------- None Cogmind --------- Core Integrity 0/250 Matter 300/300 Energy 100/100 System Corruption 5% Temperature Cool (0) Movement Core (1350) Ox26 Location -10/Mines Parts ------- > --- POWER (1) -------- (None) > --- PROPULSION (2) --- (None) > --- UTILITY (2) ------ Huge Storage Unit > --- WEAPON (2) ------- (None) > --- INVENTORY (25) --- Light Ion Engine Light Ion Engine Light Ion Engine Wheel Wheel Wheel Wheel Wheel Compact Wheel Small Laser Assault Rifle Assault Rifle Peak State ------------ > --- POWER ------------ Ion Engine > --- PROPULSION ------- Wheel Wheel > --- UTILITY ---------- Huge Storage Unit Sensor Array > --- WEAPON ----------- Light Assault Rifle Light Cannon > --- INVENTORY -------- Light Ion Engine Light Ion Engine Light Ion Engine Wheel Wheel Wheel Wheel Wheel Compact Wheel Small Laser Assault Rifle Assault Rifle [Rating: 8] Favorites ----------- Power Ion Engine Engine Ion Engine Propulsion Wheel Leg Aluminum Leg Wheel Wheel Utility Huge Storage Unit Device Tractor Beam Storage Huge Storage Unit Weapon Light Assault Rifle Energy Gun EM Pulse Gun Ballistic Gun Light Assault Rifle Ballistic Cannon Light Cannon Build | -11 -10 -10 ------- Run | Yrd Mat Min Slots Evolved . | . . . Power . | . . . Propulsion . | . . . Utility . | . . . Weapon . | . . . Parts Attached 13 | 7 5 1 Power 2 | 1 1 . Engine 2 | 1 1 . Core . | . . . Reactor . | . . . Propulsion 4 | 2 2 . Treads . | . . . Leg 2 | 2 . . Wheel 2 | . 2 . Hover . | . . . Flight . | . . . Utility 4 | 2 1 1 Device 2 | 1 . 1 Storage 2 | 1 1 . Processor . | . . . Hackware . | . . . Protection . | . . . Artifact . | . . . Weapon 3 | 2 1 . Energy Gun 1 | 1 . . Energy Cannon . | . . . Ballistic Gun 1 | 1 . . Ballistic Cannon 1 | . 1 . Launcher . | . . . Special Weapon . | . . . Impact Weapon . | . . . Slashing Weapon . | . . . Piercing Weapon . | . . . Special Melee Weapon . | . . . Unidentified Prototypes . | . . . Parts Lost 9 | . 3 6 Power 2 | . 1 1 Propulsion 2 | . . 2 Utility 2 | . 1 1 Weapon 3 | . 1 2 Highest Loss Streak 6 | . 3 6 To Critical Strikes . | . . . Average Slot Usage (%) 89 | . 90 87 Engine 12 | . 11 12 Leg 7 | . 10 . Wheel 19 | . 17 25 Device 8 | . 7 9 Storage 14 | . 14 14 Energy Gun 5 | . 7 . Ballistic Gun 13 | . 14 11 Ballistic Cannon 7 | . 5 12 Peak Build Rating 8 | 7 7 8 Average Rating 6 | 5 6 7 On Entrance 4 | . 7 7 Naked Turns . | . . . Heaviest Build 90 | 14 89 90 Greatest Support 20 | 20 20 20 Greatest Overweight (x) 27 | 1 4 27 Average Overweight (x) 2 | . 1 4 Largest Inventory Capacity 25 | 8 25 25 Average Capacity 18 | 7 20 25 Most Carried 13 | 6 11 13 Average Carried 7 | 4 6 11 Final Capacity 25 | 8 25 25 Final Carried 12 | 6 10 12 Class Distribution -------------------- 100% | Mutant Dominant Class ---------------- Mutant | -10/Materials Mutant | -10/Mines Resources | -11 -10 -10 ----------- Run | Yrd Mat Min Matter Collected 419 | 281 138 . Remotely 149 | 104 45 . Salvage Created 564 | 122 442 . Parts 40 | 10 30 . Haulers Intercepted . | . . . Recyclers Shooed 2 | . 2 . Parts Field Recycled . | . . . Retrieved Matter . | . . . Parts Self-Destructed . | . . . Prevented . | . . . Kills | -11 -10 -10 ------- Run | Yrd Mat Min Combat Hostiles Destroyed 2 | . 2 . Guns 1 | . 1 . Cannons 1 | . 1 . Classes Destroyed 6 | 2 4 . Worker 4 | . 4 . Builder 1 | . 1 . Tunneler 2 | 2 . . Recycler 4 | 1 3 . Watcher 2 | . 2 . Grunt 2 | . 2 . Best Kill Streak 9 | 2 9 . Combat Bots Only 1 | . 1 . Max Kills in Single Turn 3 | 1 3 . Gunslinging . | . . . Exploded . | . . . Melee . | . . . Uniques/NPCs Destroyed . | . . . Combat | -11 -10 -10 -------- Run | Yrd Mat Min Hostile Shots Fired 61 | . 24 37 Missed 18 | . 9 9 Damage Taken 776 | 12 276 488 Core 254 | . 62 192 Absorbed by Shields . | . . . Core Remaining (%) 100 | 100 . . Volleys Fired 46 | 11 33 2 Largest 2 | 2 2 2 Hottest 60 | 60 60 55 Shots Fired 89 | 22 64 3 Gun 73 | 22 50 1 Cannon 16 | . 14 2 Launcher . | . . . Special . | . . . Kinetic 61 | 11 47 3 Thermal . | . . . Explosive . | . . . Electromagnetic 28 | 11 17 . Robot Hit Streak 7 | 5 7 1 Robot Miss Streak 4 | 2 4 1 Penetration Max . | . . . Secondary Targets . | . . . Shots Hit Robots 51 | 14 36 1 Core Hits 25 | 5 19 1 Critical Kills . | . . . Critical Parts Destroyed . | . . . Critical Strikes . | . . . Melee Attacks . | . . . Impact . | . . . Slashing . | . . . Piercing . | . . . Sneak Attacks . | . . . Combat Hostiles . | . . . Follow-up Attacks . | . . . Damage Inflicted 783 | 174 593 16 Guns 417 | 133 284 . Cannons 172 | . 156 16 Explosions 194 | 41 153 . Melee . | . . . Ramming . | . . . Kinetic 367 | 58 293 16 Thermal 108 | 41 67 . Explosive . | . . . Electromagnetic 308 | 75 233 . Impact . | . . . Slashing . | . . . Piercing . | . . . Highest Corruption 5 | . . 5 Average Corruption 5 | . . 5 Corruption Purged . | . . . Corruption Blocked . | . . . Overload Shots . | . . . Overflow Damage 8 | . 8 . Projectiles 6 | . 6 . Explosions 2 | . 2 . Melee . | . . . Knockbacks 4 | . 3 1 Impact . | . . . Kinetic 4 | . 3 1 Secondary . | . . . Self-Inflicted Damage 83 | 12 71 . Shots 5 | 1 4 . Rammed . | . . . Targets Rammed . | . . . Kicked . | . . . Crushed . | . . . Highest Temperature 44 | 40 44 34 Average Temperature 18 | 24 16 23 Received Heat Transfer 263 | . 123 140 Siege Activations . | . . . Robots Corrupted . | . . . Combat Hostiles . | . . . Parts Fried . | . . . Impact Corruptions . | . . . Robots Melted . | . . . Combat Hostiles . | . . . Parts Melted . | . . . Heat Transferred 100 | . 100 . Parts Sabotaged . | . . . Parts Stolen . | . . . Parts Stripped . | . . . Power Chain Reactions 5 | 1 4 . Alert | -11 -10 -10 ------- Run | Yrd Mat Min Peak Influence 152 | 15 152 58 Initial 58 | . 9 58 Average 54 | 4 74 52 Maximum Alert Level . | . . . Low Security (%) 100 | 100 100 100 Level 1 . | . . . Level 2 . | . . . Level 3 . | . . . Level 4 . | . . . Level 5 . | . . . High Security . | . . . Max Security . | . . . Squads Dispatched . | . . . Investigation . | . . . Extermination . | . . . Reinforcement . | . . . Assault . | . . . Garrison . | . . . Intercept . | . . . Searches Triggered . | . . . Construction Impeded . | . . . Haulers Reinforced . | . . . Active Scanning Responses . | . . . Cargo Convoy Interrupts . | . . . Stealth | -11 -10 -10 --------- Run | Yrd Mat Min Distress Signals . | . . . Communications Jammed . | . . . Distress Signals . | . . . Times Spotted 16 | . 4 12 Peak Tracking Total 9 | . 3 9 Tactical Retreats . | . . . Traps | -11 -10 -10 ------- Run | Yrd Mat Min Traps Triggered . | . . . Indirectly . | . . . Trap Hack Attempts . | . . . Triggered . | . . . Disarmed . | . . . Reprogrammed . | . . . Reused . | . . . Traps Extracted . | . . . Installed . | . . . Triggered . | . . . Machines | -11 -10 -10 ---------- Run | Yrd Mat Min Machines Disabled 2 | . 2 . Max in Single Turn 2 | . 2 . Machines Repaired . | . . . Machines Dismantled . | . . . Machines Sabotaged . | . . . Overloaded Fab Kills . | . . . Hacking | -11 -10 -10 --------- Run | Yrd Mat Min Machines Accessed 3 | . 3 . Terminals 2 | . 2 . Fabricators . | . . . Repair Stations 1 | . 1 . Recycling Units . | . . . Scanalyzers . | . . . Garrison Access . | . . . Total Hacks 6 | . 6 . Successful 4 | . 4 . Failed 2 | . 2 . Catastrophic 2 | . 2 . Database Lockouts . | . . . Manual . | . . . Terminals 5 | . 5 . Fabricators . | . . . Repair Stations 1 | . 1 . Recycling Units . | . . . Scanalyzers . | . . . Garrison Access . | . . . Terminal Hacks 3 | . 3 . Maintenance Status 1 | . 1 . Security Status 1 | . 1 . Registered Prototypes 1 | . 1 . Fabricator Hacks . | . . . Repair Station Hacks 1 | . 1 . Scan Component 1 | . 1 . Recycling Unit Hacks . | . . . Scanalyzer . | . . . Garrison Access Hacks . | . . . Unauthorized Hacks . | . . . Terminals . | . . . Fabricators . | . . . Repair Stations . | . . . Recycling Units . | . . . Scanalyzers . | . . . Garrison Access . | . . . Data Cores Recovered . | . . . Used . | . . . Hacking Detections 1 | . 1 . Full Trace Events . | . . . Feedback Events . | . . . Feedback Blocked . | . . . Robot Schematics Acquired . | . . . Robots Built . | . . . Authchips . | . . . Time . | . . . Total Robot Build Rating . | . . . Part Schematics Acquired . | . . . Parts Built . | . . . Authchips . | . . . Time . | . . . Total Part Build Rating . | . . . Parts Repaired . | . . . Time . | . . . Parts Recycled . | . . . Recycled Matter . | . . . Retrieved Matter . | . . . Retrieved Components . | . . . Parts Scanalyzed . | . . . Part Schematics Acquired . | . . . Parts Damaged . | . . . Bothacking | -11 -10 -10 ------------ Run | Yrd Mat Min Used RIF Installer . | . . . Robots Hacked . | . . . Non-combat . | . . . Combat . | . . . Robot Hacks Applied . | . . . Relay Couplers Released . | . . . Fabnet Peak Effective % . | . . . Robots Rewired . | . . . Allies Hacked . | . . . Hacks Repelled . | . . . Allies | -11 -10 -10 -------- Run | Yrd Mat Min Total Allies . | . . . Largest Group . | . . . Highest-Rated Group . | . . . Highest-Rated Ally . | . . . Total Orders . | . . . Ally Attacks . | . . . Total Damage . | . . . Kills . | . . . Allies Corrupted . | . . . Allies Melted . | . . . Intel | -11 -10 -10 ------- Run | Yrd Mat Min Robot Analysis Total . | . . . Derelict Logs Recovered 1 | . . 1 Drone Launches . | . . . Drone Recoveries . | . . . Exploration | -11 -10 -10 ------------- Run | Yrd Mat Min Turns Passed 532 | 115 294 123 Spaces Moved 268 | 61 130 77 Core 15 | 14 . 1 Treads . | . . . Legs 120 | 47 73 . Wheels 133 | . 57 76 Hover . | . . . Flight . | . . . Fastest Speed 50 | 50 120 140 Average Speed 138 | 104 143 157 Slowest Speed 1400 | 120 400 1400 Overloaded Moves . | . . . Propulsion Burnouts . | . . . Robots Hopped . | . . . Cave-ins Triggered . | . . . Exploration Rate (%) 16 | 5 20 24 Regions Visited 2 Branch Regions 1 Pre-discovered Areas . | . . . Known Exits Taken . | . . . Unknown Exits Taken 2 | 1 1 . Scrap Searched . | . . . Spaces Dug . | . . . Terrain Destroyed 4 | . 4 . Melee . | . . . Projectile . | . . . AOE 4 | . 4 . Terrain Rammed . | . . . Walls Destroyed . | . . . Machines Disabled . | . . . Actions | -11 -10 -10 --------- Run | Yrd Mat Min Total 357 | 93 181 83 Wait . | . . . Move 266 | 60 129 77 Hop . | . . . Pick Up 27 | 14 10 3 Fast Attach . | . . . Attach 12 | 7 4 1 Detach . | . . . Swap 1 | . 1 . Drop 5 | 1 4 . Fire 46 | 11 33 2 Melee . | . . . Ram . | . . . Kick . | . . . Crush . | . . . Escape Stasis . | . . . Rewire . | . . . Trap . | . . . Miscellaneous . | . . . Route ------- -11/Scrapyard -10/Materials -10/Mines History --------- Turn | Location | Event 7 | -11/Scrapyard | Discovered new exit (range 15) 116 | -11/Scrapyard | Entered Materials 263 | -10/Materials | Discovered new exit (range 13) 314 | -10/Materials | Build established: Mutant 320 | -10/Materials | Lost 3 parts (1p1u1w) 410 | -10/Materials | Entered Mines 471 | -10/Mines | Assembled infested the area 476 | -10/Mines | Assisted by a Guerilla fighting off Assembled 529 | -10/Mines | Core integrity fell below 50% 532 | -10/Mines | Core integrity fell below 20% 533 | -10/Mines | Destroyed by as-77759 with Assembled Blade Last Messages --------------- 00509_ D-53 Grenadier destroyed. 00509_ K-01 Serf destroyed. 00511_ HV Slug penetrates Wall. 00512_ as-16258 knocked back. 00515_ HV Slug penetrates Wall. 00516_ Sensor Array destroyed. 00516_ System corrupted by crushing effect (+5). 00517_ Knocked back. 00517_ HV Slug penetrates as-78832. 00517_ as-78832 suffers critical hit (Destroy). 00517_ as-78832 destroyed. 00519_ Lgt. Assault Rifle destroyed. 00519_ HV Slug penetrates Wall. 00521_ as-16258 suffers critical hit (Destroy). 00521_ as-16258 knocked back. 00522_ Wheel destroyed. 00523_ Ion Engine destroyed. 00525_ Knocked back. 00526_ Wheel destroyed. 00527_ Lgt. Cannon destroyed. Map ----- +----------------------------------------------------+ | ??????????????????????????????????????????????? | | ??????????????????????????????????????????????? | | ??????????????????????????????????????????????? | | ??????????????????????????????????????????????? | | ??????????????????????????????????????????????? | | ??????????????????????????????????????????????? | | ??????????????????????????????????????????????? | | ??????????????????????????????????????????????? | | ??????????????????????????????????????????????? | | ??????????????????????????????????????????????? | | ??????????????????????????????????????????????? | | ??????????????????????????????????????????????? | | ??????????????????????????#???????????????????? | | ?????????????????????????? ??????????????????? | | ?????????????????????????# ???????????????????? | | ????????????????????????# ???? ?????????????? | | ???????????????????????? ???? #?????????????? | | ???????????????????????? ?? #?????????????? | | ???????????????????????? """ #?????????????? | | ????????????????????????# """ #?????????????? | | ????????????????????????# """ #??????????????? | | ?????????????????????#### """ #???????????????? | | ????????????????????## ##??????????????? | | ???????##???????????# ##????######???? | | ??????? #??????????# %a #???## ##??? | | ??????? ?????????## !a@ #??## ##?? | | ??????? ????????## aaa### ##?## #?? | | ???????# ????????# ##????????# #?? | | ??????## ????????# a #?????????# #?? | | ?????## #???????## #?????????# #?? | | ?????# #?????### % ##????????# #?? | | ?????# #???###; ##?#????## #??? | | ###### ##??#"; a % %"#"#### #??? | | ##### ##?? | | ## !%# ##? | | ######## ##########"### #? | | ???????# ##?????????##??# % #? | | ???????# ##???????????????? !!%# ##? | | ???????# ##??????????????????# %%"###?? | | ???????# ##????????????????????# #!]"????? | | ???????## ##???????????????????????## #????? | | ????????#####?????????????????????????# #????? | | ??????????????????????????????????????# ????? | | ??????????????????????????????????????# ???? | | ?????????????????????????????????????? ???? | | ?????????????????????????????????????? ??? | | ?????????????????????????????????????? ##?? | | ????????????????????????????????????? ## ##??? | | ?????????????????????????????????????#??###???? | | ??????????????????????????????????????????????? | +----------------------------------------------------+ Best States ------------- Heat Dissipation 25 Energy Generation 10 Energy Capacity 250 Matter Stores 300 Matter Capacity 300 Sight Range 16 Robot Scan Range 14 Terrain Scan Density 10 Evasion (%) 55 Item Schematics ----------------- None Robot Schematics ------------------ None Fabricated ------------ Nothing Alien Tech Used ----------------- None Achievements -------------- None Challenges ------------ None Game ------ Seed CryofiberBattleDiverter Manual? 0 Play Time 00:09:08 Cumulative 42.0 hours Start 2025.02.24 @ 04:22:39 End 2025.02.24 @ 04:30:11 Sessions 1 Manual Loads 0 Difficulty Rogue Special Mode None Game No. 41 Rogue 41 Adventurer 0 Explorer 0 Win Type - Total 0 Types 0/0/0/0/0/0/0/0/0 Lore% 3 Gallery% 29 Achievement% 24 Wizard Run 0 Options --------- Layout 0 ASCII 0 Keyboard 0 Movement Mouse Keybinds 0 Fullscreen 2 Font 12/Smallcaps Map View 41x27 Zoom Use 99% Tactical HUD 1 Map Filters NONE Filters NONE Steam 1 RUN: 4adc7606-e1c2-43a9-bf78-f2a3687cd02b